fUSD/lending_fUSD_20250413
["ID","MTS","AMOUNT","RATE_DAILY","PERIOD"]
[357926516,1744575033911,-150.0,0.00019859,2]
[357926517,1744575033920,-150.0,0.0001986,2]
[357926518,1744575033930,-150.0,0.0001986,2]
[357926519,1744575033940,-150.0,0.0001986,2]
[357926520,1744575033950,-150.0,0.0001986,2]
[357926521,1744575033960,-886.61753832,0.00019862,2]
[357926522,1744575033969,-500.0,0.00019863,2]
[357926523,1744575033978,-500.0,0.00019863,2]
[357926524,1744575033987,-500.0,0.00019863,2]
[357926525,1744575033996,-500.0,0.00019863,2]
[357926526,1744575034006,-500.0,0.00019863,2]
[357926527,1744575034015,-500.0,0.00019863,2]
[357926528,1744575034024,-500.0,0.00019863,2]
[357926529,1744575034033,-500.0,0.00019863,2]
[357926530,1744575034043,-174.18277254,0.00019863,2]
[357926531,1744575034052,-500.0,0.00019863,2]
[357926532,1744575034062,-500.0,0.00019863,2]
[357926533,1744575034073,-500.0,0.00019863,2]
[357926534,1744575034083,-500.0,0.00019863,2]
[357926535,1744575034093,-500.0,0.00019863,2]
[357926536,1744575034103,-500.0,0.00019863,2]
[357926537,1744575034113,-500.0,0.00019863,2]
[357926538,1744575034124,-150.0,0.00019865,2]
[357926539,1744575034134,-1452.4379711,0.00019867,2]
[357926540,1744575034144,-150.0,0.00019867,2]
[357926541,1744575034154,-378.79,0.00019868,2]
[357926542,1744575034165,-150.0,0.00019869,2]
[357926543,1744575034176,-150.0,0.00019873,2]
[357926544,1744575034186,-150.0,0.00019874,2]
[357926545,1744575034196,-378.79,0.00019876,2]
[357926546,1744575034206,-378.79,0.00019876,2]
[357926547,1744575034217,-150.0,0.00019877,2]
[357926548,1744575034228,-1452.4379711,0.00019878,2]
[357926549,1744575034239,-15465.69877362,0.00019878,2]
[357926550,1744575034251,-150.0,0.0001988,2]
[357926551,1744575034261,-150.0,0.00019886,2]
[357926552,1744575034272,-20699.7263,0.00019886,2]
[357926553,1744575034283,-1371.4725,0.00019886,2]
[357926554,1744575034293,-1507.5996,0.00019886,2]
[357926555,1744575034303,-2128.4123,0.00019886,2]
[357926556,1744575034313,-17890.4878,0.00019886,2]
[357926557,1744575034327,-1452.4379711,0.00019889,2]
[357926558,1744575034337,-150.0,0.00019889,2]
[357926559,1744575034346,-378.79,0.0001989,2]
[357926560,1744575034357,-150.0,0.00019896,2]
[357926561,1744575034367,-609.6593,0.000199,2]
[357926562,1744575034376,-642.5933,0.000199,2]
[357926563,1744575034386,-17593.6881,0.000199,2]
[357926564,1744575034396,-150.01320832,0.000199,2]
[357926565,1744575034405,-879.50764836,0.000199,2]
[357926566,1744575034415,-1452.4379711,0.000199,2]
[357926567,1744575034425,-300.0,0.000199,7]
[357926568,1744575034435,-15465.69877362,0.000199,2]
[357926569,1744575034445,-453.96849313,0.000199,2]
[357926570,1744575034454,-181.92149554,0.000199,2]
[357926571,1744575034463,-188.76769289,0.000199,3]
[357926572,1744575034473,-793.69853405,0.000199,2]
[357926573,1744575034483,-150.0,0.00019905,2]
[357926574,1744575034491,-255.67474997,0.00019907,2]
[357926575,1744575034502,-817.572,0.00019908,2]
[357926576,1744575034511,-174.288,0.00019908,2]
[357926577,1744575034520,-150.0,0.00019924,2]
[357926578,1744575034530,-150.0,0.00019924,2]
[357926579,1744575034539,-150.0,0.00019928,2]
[357926580,1744575034548,-376.52032386,0.00019928,2]
[357926581,1744575034557,-150.0,0.00019935,2]
[357926582,1744575034567,-150.0,0.00019936,2]
[357926583,1744575034579,-150.0,0.00019941,2]
[357926584,1744575034589,-150.0,0.00019941,2]
[357926585,1744575034599,-150.0,0.00019944,2]
[357926586,1744575034609,-150.0,0.00019945,2]
[357926587,1744575034619,-150.0,0.00019946,2]
[357926588,1744575034628,-150.0,0.00019946,2]
[357926589,1744575034638,-150.0,0.00019952,2]
[357926590,1744575034647,-150.0,0.00019953,2]
[357926591,1744575034657,-592.0,0.00019964,2]
[357926592,1744575034667,-150.0,0.00019972,2]
[357926593,1744575034677,-608.78042851,0.00019973,2]
[357926594,1744575034686,-500.0,0.00019973,2]
[357926595,1744575034696,-500.0,0.00019973,2]
[357926596,1744575034706,-500.0,0.00019973,2]
[357926597,1744575034716,-500.0,0.00019973,2]
[357926598,1744575034726,-500.0,0.00019973,2]
[357926599,1744575034735,-500.0,0.00019973,2]
[357926600,1744575034745,-500.0,0.00019973,2]
[357926601,1744575034759,-150.0,0.00019973,2]
[357926602,1744575034768,-150.0,0.00019976,2]
[357926603,1744575034778,-150.0,0.00019982,2]
[357926604,1744575034788,-1455.954057,0.00019986,2]
[357926605,1744575034799,-33461.163959,0.00019986,2]
[357926606,1744575034808,-1892.2949277,0.00019986,2]
[357926607,1744575034818,-1764.0616571,0.00019986,2]
[357926608,1744575034830,-172.4197635,0.0001999,2]
[357926609,1744575034840,-172.4197635,0.0001999,2]
[357926610,1744575034850,-172.4197635,0.0001999,2]
[357926611,1744575034859,-150.0,0.00019993,2]
[357926612,1744575034870,-150.0,0.00019996,2]
[357926613,1744575034879,-68077.57986583,0.0002,2]
[357926614,1744575034889,-102086.30190111,0.0002,2]
[357926615,1744575035056,-357542.48805592,0.0002,2]
[357926616,1744575035079,-1776.5946,0.0002,2]
[357926617,1744575035095,-40782.33867655,0.0002,2]
[357926618,1744575035107,-546.70831491,0.0002,2]
[357926619,1744575035119,-872.32,0.0002,2]
[357926624,1744575037799,-788.003,0.00019645,2]
[357926625,1744575037809,-29835.95323808,0.0002,2]
[357926626,1744575037852,-345.34964341,0.0002,2]
[357926627,1744575037865,-1685.34410976,0.0002,2]
[357926628,1744575038065,-2403.78704119,0.0002,2]
[357926629,1744575038079,-11586.81319504,0.0002,2]
[357926630,1744575038091,-295942.71758988,0.0002,2]
[357926631,1744575038102,-16293.51385545,0.0002,2]
[357926632,1744575038113,-1400.85085123,0.0002,2]
[357926633,1744575038124,-2236.68183204,0.0002,2]
[357926634,1744575038224,-30541.842756,0.0002,2]
[357926635,1744575038237,-11373.34699233,0.0002,2]
[357926701,1744575039859,-20205.7208405,0.0002,2]
[357926702,1744575039872,-1645.47510041,0.0002,2]
[357926703,1744575039965,-1645.02604805,0.0002,2]
[357926704,1744575039977,-323.80696015,0.0002,2]
[357926705,1744575039989,-304.5091784,0.0002,2]
[357926706,1744575040001,-1681.08847599,0.0002,2]
[357926707,1744575040012,-1027.50043983,0.0002,2]
[357926731,1744575044533,-894.78695224,0.0002,2]
[357926732,1744575044545,-1883.59137584,0.0002,2]
[357926733,1744575044557,-3175.65577843,0.0002,2]
[357926735,1744575045782,-135004.16032428,0.0002,2]
[357926736,1744575045941,-401.18191999,0.0002,2]
[357926742,1744576117636,656.8,0.000149,2]
[357926747,1744576218753,1061.28,0.0001666,2]
[357926754,1744576231853,-200.0,0.00018543,2]
[357926755,1744576231863,-300.0,0.00018637,2]
[357926756,1744576231873,-300.0,0.00018637,2]
[357926757,1744576231882,-551.34433458,0.00018638,2]
[357926758,1744576231894,-754.81348246,0.00018638,2]
[357926759,1744576231910,-3873.80442689,0.00018638,2]
[357926760,1744576232130,-1247.11792128,0.00018638,2]
[357926761,1744576232188,-1519.81907589,0.00018638,2]
[357926996,1744576238051,-15953.1007589,0.00018638,2]
[357926997,1744576238063,-1000.0,0.00018779,2]
[357926998,1744576238073,-500.0,0.00018842,2]
[357926999,1744576238084,-200.0,0.00018899,2]
[357927000,1744576238094,-1061.28,0.00018924,2]
[357927001,1744576238105,-250.0,0.00019,2]
[357927002,1744576238118,-161.46508792,0.00019,2]
[357927003,1744576238133,-25697.78995632,0.00019,2]
[357927004,1744576238144,-250.0,0.00019037,2]
[357927005,1744576238156,-318.28,0.00019089,2]
[357927006,1744576238166,-200.0,0.00019108,2]
[357927007,1744576238176,-2000.0,0.00019123,2]
[357927008,1744576238186,-19999.99,0.00019123,2]
[357927009,1744576238197,-6351.68,0.00019123,2]
[357927010,1744576238207,-3362.49,0.00019123,2]
[357927011,1744576238218,-2030.01,0.00019177,2]
[357927012,1744576238227,-298.30019441,0.00019178,2]
[357927013,1744576238237,-500.0,0.00019178,2]
[357927014,1744576238247,-501.46848132,0.00019178,2]
[357927015,1744576238256,-500.0,0.00019178,2]
[357927016,1744576238266,-500.0,0.00019178,2]
[357927017,1744576238275,-531.34235792,0.00019178,2]
[357927018,1744576238286,-500.0,0.00019178,2]
[357927019,1744576238296,-545.91903979,0.00019178,2]
[357927020,1744576238305,-269.36350828,0.00019178,2]
[357927021,1744576238315,-562.56724887,0.00019178,2]
[357927022,1744576238324,-537.28440187,0.00019178,2]
[357927023,1744576238333,-500.0,0.00019178,2]
[357927024,1744576238342,-572.42377226,0.00019178,2]
[357927025,1744576238352,-500.0,0.00019178,2]
[357927026,1744576238361,-500.0,0.00019178,2]
[357927027,1744576238371,-500.0,0.00019178,2]
[357927028,1744576238381,-500.0,0.00019178,2]
[357927029,1744576238391,-500.0,0.00019178,2]
[357927030,1744576238401,-500.0,0.00019178,2]
[357927031,1744576238411,-5129.98,0.00019178,2]
[357927032,1744576238421,-640.43849148,0.00019178,2]
[357927033,1744576238431,-500.0,0.00019178,2]
[357927034,1744576238441,-500.0,0.00019178,2]
[357927035,1744576238451,-500.0,0.00019178,2]
[357927036,1744576238461,-1101.16,0.00019178,2]
[357927037,1744576238471,-500.0,0.00019178,2]
[357927038,1744576238481,-500.0,0.00019178,2]
[357927039,1744576238491,-500.0,0.00019178,2]
[357927040,1744576238501,-500.0,0.00019178,2]
[357927041,1744576238511,-500.0,0.00019178,2]
[357927042,1744576238521,-636.56,0.00019178,2]
[357927044,1744576238532,-500.0,0.00019178,2]
[357927046,1744576238541,-491.14958141,0.00019178,2]
[357927048,1744576238551,-500.0,0.00019178,2]
[357927050,1744576238560,-500.0,0.00019178,2]
[357927052,1744576238570,-504.78,0.00019178,2]
[357927053,1744576238579,-515.81423412,0.00019178,2]
[357927055,1744576238589,-3256.35,0.00019178,2]
[357927056,1744576238598,-173.62637847,0.00019178,2]
[357927057,1744576238608,-311.73011261,0.000193,2]
[357927058,1744576238619,-150.99,0.00019339,2]
[357927060,1744576238630,-332.37,0.00019339,2]
[357927062,1744576238639,-9999.99,0.00019339,2]
[357927064,1744576238648,-9999.99,0.00019339,2]
[357927066,1744576238658,-4007.36,0.00019339,2]
[357927067,1744576238667,-6244.46,0.00019339,2]
[357927069,1744576238677,-2835.65,0.00019339,2]
[357927071,1744576238686,-999.99,0.00019339,2]
[357927072,1744576238696,-299.99,0.00019339,7]
[357927073,1744576238706,-3344.43,0.00019339,2]
[357927074,1744576238716,-150.99,0.00019339,2]
[357927075,1744576238726,-499.99,0.00019339,2]
[357927076,1744576238735,-333.76,0.00019339,2]
[357927077,1744576238745,-786.33,0.00019339,2]
[357927078,1744576238755,-162.96,0.00019361,2]
[357927079,1744576238764,-500.0,0.00019452,2]
[357927080,1744576238774,-500.0,0.00019452,2]
[357927081,1744576238783,-500.0,0.00019452,2]
[357927082,1744576238793,-500.0,0.00019452,2]
[357927083,1744576238802,-500.0,0.00019452,2]
[357927084,1744576238811,-5129.98,0.00019452,2]
[357927085,1744576238821,-1101.16,0.00019452,2]
[357927086,1744576238831,-500.0,0.00019452,2]
[357927087,1744576238840,-500.0,0.00019452,2]
[357927088,1744576238850,-500.0,0.00019452,2]
[357927089,1744576238859,-1327.0,0.00019666,2]
[357927090,1744576238868,-3963.0,0.00019666,2]
[357927091,1744576238879,-3423.3012,0.00019689,2]
[357927092,1744576238888,-18237.87498171,0.00019716,2]
[357927093,1744576238898,-500.0,0.00019726,2]
[357927094,1744576238908,-500.0,0.00019726,2]
[357927095,1744576238917,-5129.98,0.00019726,2]
[357927096,1744576238928,-1101.16,0.00019726,2]
[357927097,1744576238937,-500.0,0.00019726,2]
[357927098,1744576238947,-500.0,0.00019726,2]
[357927099,1744576238957,-500.0,0.00019726,2]
[357927100,1744576238967,-3663.95674573,0.0001979,2]
[357927101,1744576238976,-1000.0,0.00019791,2]
[357927102,1744576238986,-21664.73530654,0.000198,2]
[357927103,1744576238996,-3663.95674564,0.00019802,2]
[357927104,1744576239006,-21664.73530645,0.00019811,2]
[357927105,1744576239015,-3663.95674564,0.00019814,2]
[357927106,1744576239025,-21664.73530645,0.00019822,2]
[357927107,1744576239035,-3663.95674564,0.00019827,2]
[357927108,1744576239044,-21664.73530645,0.00019833,2]
[357927109,1744576239054,-3663.95674564,0.00019839,2]
[357927110,1744576239064,-21664.73530645,0.00019844,2]
[357927111,1744576239074,-3663.95674564,0.00019851,2]
[357927112,1744576239083,-21664.73530645,0.00019856,2]
[357927113,1744576239093,-3663.95674564,0.00019863,2]
[357927114,1744576239102,-21664.73530645,0.00019867,2]
[357927115,1744576239115,-3663.95674564,0.00019876,2]
[357927116,1744576239125,-21664.73530645,0.00019878,2]
[357927117,1744576239135,-1837.03798038,0.00019885,2]
[357927118,1744576239144,-1691.2143,0.00019886,2]
[357927119,1744576239155,-3663.95674564,0.00019888,2]
[357927120,1744576239164,-21664.73530645,0.00019889,2]
[357927121,1744576239174,-260.0,0.000199,2]
[357927122,1744576239183,-1405.5238,0.000199,2]
[357927123,1744576239195,-150.01320829,0.000199,2]
[357927124,1744576239204,-114800.50859616,0.000199,2]
[357927125,1744576239214,-466.74342603,0.000199,2]
[357927126,1744576239224,-158.96463144,0.000199,3]
[357927127,1744576239234,-21664.73530645,0.000199,2]
[357927128,1744576239243,-3663.95674564,0.000199,2]
[357927129,1744576239253,-203.00229618,0.000199,2]
[357927130,1744576239263,-421.90338906,0.000199,2]
[357927131,1744576239272,-1553.50792145,0.000199,2]
[357927132,1744576239282,-1553.50792145,0.000199,2]
[357927133,1744576239297,-654.058,0.00019927,2]
[357927134,1744576239307,-377.0,0.00019973,2]
[357927135,1744576239317,-500.0,0.00019973,2]
[357927136,1744576239327,-500.0,0.00019973,2]
[357927137,1744576239336,-539.8705946,0.00019973,2]
[357927138,1744576239346,-500.0,0.00019973,2]
[357927139,1744576239355,-499.97534653,0.00019973,2]
[357927140,1744576239365,-500.0,0.00019973,2]
[357927141,1744576239376,-500.0,0.00019973,2]
[357927142,1744576239386,-4113.6100144,0.00019986,2]
[357927143,1744576239395,-1196.9956154,0.00019986,2]
[357927144,1744576239405,-24918.4966068,0.00019986,2]
[357927145,1744576239416,-623.1975023,0.00019986,2]
[357927146,1744576239425,-983.3764185,0.00019986,2]
[357927147,1744576239435,-24681.2983966,0.00019986,2]
[357927148,1744576239444,-151.0,0.00019988,2]
[357927149,1744576239454,-207.4,0.00019988,2]
[357927150,1744576239463,-175.95307137,0.0001999,2]
[357927151,1744576239474,-2916.0,0.00019997,4]
[357927152,1744576239483,-500.0,0.00019999,2]
[357927153,1744576239492,-250.0,0.00019999,2]
[357927154,1744576239502,-500.0,0.00019999,2]
[357927155,1744576239511,-500.0,0.00019999,2]
[357927156,1744576239520,-500.0,0.00019999,2]
[357927157,1744576239530,-500.0,0.00019999,2]
[357927158,1744576239539,-500.0,0.00019999,2]
[357927159,1744576239548,-500.0,0.00019999,2]
[357927160,1744576239557,-199.26953181,0.00019999,2]
[357927161,1744576239567,-500.0,0.00019999,2]
[357927162,1744576239576,-600.0,0.00019999,2]
[357927163,1744576239585,-59038.78993291,0.0002,2]
[357927164,1744576239595,-306157.55923181,0.0002,2]
[357927165,1744576239608,-454102.99818942,0.0002,2]
[357927166,1744576239623,-30623.95623808,0.0002,2]
[357927171,1744576240063,-545.7393,0.00019666,2]
[357927172,1744576240075,-152.2607,0.00019666,2]
[357927173,1744576240085,-749.1595829,0.0002,2]
[357927174,1744576240239,-412.99258,0.0002,2]
[357927175,1744576240301,-516.6712998,0.0002,2]
[357927176,1744576240313,-552.31242,0.0002,2]
[357927177,1744576240361,-270.11321175,0.0002,2]
[357927178,1744576240419,-37198.74541659,0.0002,2]
[357927179,1744576240533,-758.79327156,0.0002,2]
[357927193,1744576242996,-2484.45947725,0.0002,2]
[357927194,1744576243008,-2538.13367488,0.0002,2]
[357927195,1744576243020,-724.687446,0.0002,2]
[357927196,1744576243031,-621.448,0.0002,2]
[357927197,1744576243054,-297494.95308459,0.0002,2]
[357927198,1744576243065,-98088.06346401,0.0002,2]
[357927199,1744576243077,-1802.76350489,0.0002,2]
[357927200,1744576243089,-1806.49803386,0.0002,2]
[357927201,1744576243100,-698.384581,0.0002,2]
[357927202,1744576243113,-7570.05644601,0.0002,2]
[357927203,1744576243129,-5119.27145973,0.0002,2]
[357927204,1744576243140,-13801.93912539,0.0002,2]
[357927210,1744576244677,-4800.9961594,0.0002,2]
[357927211,1744576244689,-6660.35750267,0.0002,2]
[357927212,1744576244703,-5733.94259137,0.0002,2]
[357927213,1744576244716,-12827.60711776,0.0002,2]
[357927214,1744576244727,-435.50221154,0.0002,2]
[357927215,1744576244738,-8627.20691,0.0002,2]
[357927216,1744576244749,-294.14994472,0.0002,2]
[357927224,1744576245994,-791.0,0.00019666,2]
[357927225,1744576246005,-1776.79540237,0.0002,2]
[357927226,1744576246017,-398.46941812,0.0002,2]
[357927227,1744576246029,-556795.30826278,0.0002,2]
[357927228,1744576246039,-151.91248168,0.0002,14]
[357927229,1744576246049,-61547.408101,0.0002,2]
[357927230,1744576246060,-1205314.6163198,0.0002,2]
[357927231,1744576246078,-1843.65503833,0.0002,2]
[357927232,1744576246089,-1518.67982264,0.0002,2]
[357927233,1744576246100,-3397.34267821,0.0002,2]
[357927234,1744576246112,-1494.35,0.0002,2]
[357927235,1744576246166,-21027.32134259,0.0002,2]
[357927236,1744576246228,-1316.65614488,0.0002,2]
[357927237,1744576246239,-460.12990329,0.0002,2]
[357927238,1744576246251,-18543.32461507,0.0002,2]
[357927239,1744576246288,-843.99315001,0.0002,2]
[357927241,1744576246299,-8681.75599626,0.0002,2]
[357927257,1744576533128,1866.42,0.00013699,2]
[357927258,1744576534031,1866.42,0.00013699,2]
[357927259,1744576534864,1866.42,0.00013699,2]
[357927260,1744576535288,1866.42,0.00013699,2]
[357927261,1744576535612,1866.42,0.00013699,2]
[357927262,1744576535936,1866.42,0.00013699,2]
[357927263,1744576536330,1866.42,0.00013699,2]
[357927264,1744576536720,1866.42,0.00013699,2]
[357927265,1744576537126,1866.42,0.00013699,2]
[357927266,1744576537535,1866.42,0.00013699,2]
[357927267,1744576539979,1866.42,0.00013699,2]
[357927268,1744576540349,1866.42,0.00013699,2]
[357927269,1744576540657,1866.42,0.00013699,2]
[357927270,1744576540978,1866.42,0.00013699,2]
[357927271,1744576541306,1866.42,0.00013699,2]
[357927272,1744576541626,1866.42,0.00013699,2]
[357927273,1744576541949,1866.42,0.00013699,2]
[357927274,1744576542469,1866.42,0.00013699,2]
[357927275,1744576543109,1866.42,0.00013699,2]
[357927276,1744576543454,1866.49550657,0.00013699,2]
[357927277,1744577244435,-191.96,0.00018056,2]
[357927278,1744577280821,-179.00811263,0.00018056,2]
[357927279,1744577323240,-169.02537182,0.00018041,2]
[357927280,1744577328192,-141.92792207,0.00018041,2]
[357927281,1744577328223,-137.49328678,0.00018044,2]
[357927282,1744577391599,191.96,0.00014519,2]
[357927283,1744577395440,1753.08,0.00016249,2]
[357927284,1744577397780,-173.4600071,0.00018044,2]
[357927285,1744577397805,-84.9799929,0.00018129,2]
[357927297,1744577432061,-448.44658,0.00017953,2]
[357927298,1744577432071,-915.0200071,0.00018129,2]
[357927299,1744577432080,-250.0,0.00018134,2]
[357927300,1744577432090,-300.0,0.00018139,2]
[357927301,1744577432099,-12538.72,0.0001814,2]
[357927302,1744577432107,-250.0,0.00018144,2]
[357927303,1744577432115,-284.68,0.00018156,2]
[357927304,1744577432125,-16207.9259446,0.00018164,2]
[357927305,1744577432138,-7692.0740554,0.00018164,2]
[357927306,1744577432148,-500.0,0.00018169,2]
[357927307,1744577432157,-2823.19,0.00018178,2]
[357927308,1744577432167,-1753.08,0.00018513,2]
[357927309,1744577432177,-325.21,0.00018632,2]
[357927310,1744577432188,-325.21,0.00018637,2]
[357927311,1744577432198,-250.76,0.00018637,2]
[357927312,1744577432208,-2534.19,0.00018637,2]
[357927313,1744577432217,-879.68,0.00018637,2]
[357927314,1744577432227,-510.84,0.00018637,2]
[357927315,1744577432236,-9999.99,0.00018637,2]
[357927316,1744577432246,-2077.77,0.00018637,2]
[357927317,1744577432255,-150.99,0.00018637,2]
[357927318,1744577432265,-325.21,0.00018642,2]
[357927319,1744577432274,-963.11,0.00018642,2]
[357927320,1744577432283,-999.99,0.00018642,2]
[357927321,1744577432293,-746.21,0.00018642,2]
[357927322,1744577432302,-2344.47,0.00018647,2]
[357927323,1744577432311,-1178.22,0.00018647,2]
[357927324,1744577432321,-325.21,0.00018647,2]
[357927325,1744577432330,-325.21,0.00018651,2]
[357927326,1744577432339,-150.99,0.00018651,2]
[357927327,1744577432349,-325.21,0.00018656,2]
[357927328,1744577432358,-325.21,0.00018661,2]
[357927329,1744577432367,-325.21,0.00018666,2]
[357927330,1744577432377,-325.21,0.00018671,2]
[357927331,1744577432388,-168.52,0.00018673,2]
[357927332,1744577432397,-325.21,0.00018676,2]
[357927333,1744577432407,-145.79059911,0.00018681,2]
[357927334,1744577432439,-179.41940089,0.00018681,2]
[357927335,1744577432449,-325.21,0.00018686,2]
[357927336,1744577432458,-325.21,0.00018691,2]
[357927337,1744577432468,-325.21,0.00018696,2]
[357927338,1744577432478,-325.21,0.000187,2]
[357927339,1744577432491,-325.21,0.00018705,2]
[357927340,1744577432500,-306.03858911,0.0001871,2]
[357927341,1744577432512,-19.17141089,0.0001871,2]
[357927342,1744577432522,-325.21,0.00018715,2]
[357927343,1744577432533,-62.61858911,0.0001872,2]
[357927345,1744577432544,-289.89542101,0.0001872,2]
[357927404,1744577438209,-147.48598988,0.0001872,2]
[357927405,1744577438219,-400.75000206,0.0001872,2]
[357927406,1744577438230,-325.21,0.0001872,2]
[357927407,1744577438239,-325.21,0.00018725,2]
[357927408,1744577438249,-302.34,0.0001878,2]
[357927409,1744577438259,-200.0,0.00018817,2]
[357927410,1744577438269,-182.11,0.00018852,2]
[357927411,1744577438279,-59.29400806,0.000189,2]
[357927412,1744577438291,-157.23657704,0.000189,2]
[357927413,1744577438300,-200.0,0.00018904,2]
[357927414,1744577438310,-250.0,0.00018904,2]
[357927415,1744577438320,-215.25359843,0.00019,2]
[357927416,1744577438331,-4977.71640157,0.00019,2]
[357927417,1744577438341,-5192.97,0.00019,2]
[357927418,1744577438351,-5192.97,0.00019,2]
[357927419,1744577438360,-5192.97,0.00019,2]
[357927420,1744577438370,-5192.97,0.00019,2]
[357927421,1744577438380,-250.0,0.00019,2]
[357927422,1744577438391,-150.0,0.00019103,2]
[357927423,1744577438401,-601.47,0.00019103,2]
[357927424,1744577438410,-3872.88983651,0.00019124,2]
[357927425,1744577438422,-4357.69016349,0.00019124,2]
[357927426,1744577438431,-150.0,0.00019161,2]
[357927427,1744577438441,-500.0,0.00019178,2]
[357927428,1744577438451,-150.0,0.00019178,2]
[357927429,1744577438464,-500.0,0.00019178,2]
[357927430,1744577438474,-500.0,0.00019178,2]
[357927431,1744577438484,-2758.8897829,0.00019178,2]
[357927432,1744577438500,-468.40396298,0.00019178,2]
[357927433,1744577438511,-1261.43625412,0.00019178,2]
[357927434,1744577438521,-289.49421419,0.00019178,2]
[357927435,1744577438533,-963.52,0.00019178,2]
[357927436,1744577438543,-500.0,0.00019178,2]
[357927437,1744577438552,-500.0,0.00019178,2]
[357927438,1744577438562,-500.0,0.00019178,2]
[357927440,1744577438573,-500.0,0.00019178,2]
[357927442,1744577438583,-500.0,0.00019452,2]
[357927444,1744577438593,-500.0,0.00019452,2]
[357927446,1744577438602,-500.0,0.00019452,2]
[357927447,1744577438612,-377.95551031,0.00019452,2]
[357927451,1744577438634,-4110.77448969,0.00019452,2]
[357927452,1744577438645,-963.52,0.00019452,2]
[357927454,1744577438656,-501.91463872,0.00019452,2]
[357927456,1744577438666,-151.0,0.00019688,2]
[357927458,1744577438675,-207.4,0.00019688,2]
[357927460,1744577438684,-4115.83057451,0.000197,2]
[357927462,1744577438696,-316.93927259,0.000197,2]
[357927464,1744577438707,-3490.83220622,0.000197,2]
[357927467,1744577438718,-428.57676063,0.000197,2]
[357927469,1744577438737,-5559.25206961,0.000197,2]
[357927666,1744577442638,-3976.2,0.000197,2]
[357927668,1744577442650,-9338.33571644,0.000197,2]
[357927670,1744577442662,-168.52,0.000197,2]
[357927672,1744577442672,-500.0,0.00019726,2]
[357927674,1744577442682,-500.0,0.00019726,2]
[357927676,1744577442691,-500.0,0.00019726,2]
[357927678,1744577442700,-4488.73,0.00019726,2]
[357927680,1744577442710,-963.52,0.00019726,2]
[357927682,1744577442719,-150.0,0.0001973,2]
[357927684,1744577442728,-150.0,0.00019742,2]
[357927686,1744577442738,-150.0,0.00019771,2]
[357927688,1744577442747,-150.0,0.00019774,2]
[357927690,1744577442756,-150.0,0.00019786,2]
[357927692,1744577442765,-572.5334,0.000198,2]
[357927694,1744577442775,-663.8652,0.000198,2]
[357927696,1744577442784,-150.0,0.0001981,2]
[357927698,1744577442793,-191.69436354,0.0001982,2]
[357927700,1744577442802,-150.0,0.0001985,2]
[357927702,1744577442812,-250.0,0.00019862,2]
[357927704,1744577442821,-150.0,0.00019872,2]
[357927706,1744577442830,-150.0,0.00019881,2]
[357927708,1744577442839,-420.0,0.00019886,2]
[357927710,1744577442848,-165.01,0.0001989,2]
[357927712,1744577442858,-165.01,0.0001989,2]
[357927714,1744577442867,-165.01,0.0001989,2]
[357927716,1744577442876,-165.01,0.0001989,2]
[357927718,1744577442885,-182.11,0.00019899,2]
[357927720,1744577442895,-378226.47095226,0.000199,2]
[357927722,1744577442905,-150.01320829,0.000199,2]
[357927724,1744577442914,-2136.35006966,0.000199,2]
[357927726,1744577442923,-562.53785206,0.000199,2]